[Event "*** Titled Tuesday Blitz"]
[Site "Chess.com"]
[Date "2018.05.01"]
[Round "6"]
[White "Gogolev_Artemy"]
[Black "tuttocalabria"]
[Result "1/2-1/2"]
[WhiteElo "2445"]
[BlackElo "2352"]
[TimeControl "180+2"]
[EndTime "14:25:26 PDT"]
[Termination "Game drawn - insufficient material"]

1. Nf3 {[%clk 0:03:01.9]} 1... d6 {[%clk 0:02:55.1]} 2. d4 {[%clk 0:02:53.6]}
2... Bg4 {[%clk 0:02:55.1]} 3. g3 {[%clk 0:02:50.5]} 3... Nd7 {[%clk 0:02:54.8]}
4. Bg2 {[%clk 0:02:51.1]} 4... e5 {[%clk 0:02:55.7]} 5. O-O {[%clk 0:02:49.8]}
5... Ngf6 {[%clk 0:02:53.6]} 6. Nc3 {[%clk 0:02:47.7]} 6... c6 {[%clk
0:02:53.2]} 7. h3 {[%clk 0:02:47.2]} 7... Bh5 {[%clk 0:02:53.7]} 8. dxe5 {[%clk
0:02:42.7]} 8... dxe5 {[%clk 0:02:54]} 9. g4 {[%clk 0:02:43.2]} 9... Bg6 {[%clk
0:02:54.3]} 10. Nh4 {[%clk 0:02:44]} 10... Be7 {[%clk 0:02:47.4]} 11. Nxg6
{[%clk 0:02:31.7]} 11... hxg6 {[%clk 0:02:47.6]} 12. Be3 {[%clk 0:02:25.9]}
12... Nc5 {[%clk 0:02:36]} 13. Qxd8+ {[%clk 0:02:20.8]} 13... Rxd8 {[%clk
0:02:35.7]} 14. Rfd1 {[%clk 0:02:20]} 14... a5 {[%clk 0:02:29.6]} 15. Rxd8+
{[%clk 0:02:14.1]} 15... Kxd8 {[%clk 0:02:30.2]} 16. Rd1+ {[%clk 0:02:09.7]}
16... Kc8 {[%clk 0:02:10.1]} 17. a3 {[%clk 0:01:41.2]} 17... Rd8 {[%clk
0:02:07.7]} 18. Rxd8+ {[%clk 0:01:41.8]} 18... Kxd8 {[%clk 0:02:07.5]} 19. f3
{[%clk 0:01:33.8]} 19... Nfd7 {[%clk 0:02:05.6]} 20. Kf2 {[%clk 0:01:33.2]}
20... f5 {[%clk 0:02:05.5]} 21. f4 {[%clk 0:01:27.7]} 21... e4 {[%clk
0:02:01.6]} 22. g5 {[%clk 0:01:25.3]} 22... Ne6 {[%clk 0:02:00.5]} 23. Bd2
{[%clk 0:01:25.2]} 23... Bc5+ {[%clk 0:01:55]} 24. e3 {[%clk 0:01:00.6]} 24...
Nxf4 {[%clk 0:01:49.6]} 25. Na4 {[%clk 0:00:59.8]} 25... Nxg2 {[%clk 0:01:46.8]}
26. Bxa5+ {[%clk 0:00:55.2]} 26... Ke8 {[%clk 0:01:03.4]} 27. Nxc5 {[%clk
0:00:44.9]} 27... Nxc5 {[%clk 0:01:01.2]} 28. Kxg2 {[%clk 0:00:45.4]} 28... Ne6
{[%clk 0:00:54.3]} 29. h4 {[%clk 0:00:45.2]} 29... b5 {[%clk 0:00:52.4]} 30. b3
{[%clk 0:00:43.6]} 30... Kd7 {[%clk 0:00:52.4]} 31. a4 {[%clk 0:00:44.6]} 31...
bxa4 {[%clk 0:00:51.6]} 32. bxa4 {[%clk 0:00:45.7]} 32... Nc5 {[%clk 0:00:51.9]}
33. Bc3 {[%clk 0:00:44.5]} 33... Nxa4 {[%clk 0:00:52.6]} 34. Bxg7 {[%clk
0:00:45.3]} 34... Nb6 {[%clk 0:00:50]} 35. Bd4 {[%clk 0:00:40.2]} 35... Nd5
{[%clk 0:00:50.5]} 36. c4 {[%clk 0:00:38.3]} 36... Nb4 {[%clk 0:00:46.1]} 37.
Kg3 {[%clk 0:00:37.8]} 37... Nd3 {[%clk 0:00:46.9]} 38. c5 {[%clk 0:00:36.6]}
38... Ke6 {[%clk 0:00:46.2]} 39. h5 {[%clk 0:00:35.4]} 39... gxh5 {[%clk
0:00:46.4]} 40. g6 {[%clk 0:00:33.7]} 40... Nb4 {[%clk 0:00:42.4]} 41. Kh4
{[%clk 0:00:34.3]} 41... Nd5 {[%clk 0:00:43.3]} 42. Kxh5 {[%clk 0:00:34.3]}
42... f4 {[%clk 0:00:42]} 43. exf4 {[%clk 0:00:30.8]} 43... e3 {[%clk
0:00:40.9]} 44. Kh6 {[%clk 0:00:28.7]} 44... e2 {[%clk 0:00:41.5]} 45. Bf2
{[%clk 0:00:29.1]} 45... Kf6 {[%clk 0:00:39.9]} 46. Kh7 {[%clk 0:00:28.1]} 46...
Ne7 {[%clk 0:00:39.5]} 47. Bh4+ {[%clk 0:00:24.9]} 47... Kf5 {[%clk 0:00:39.5]}
48. g7 {[%clk 0:00:23.5]} 48... Kxf4 {[%clk 0:00:34.8]} 49. Bxe7 {[%clk
0:00:17.6]} 49... e1=Q {[%clk 0:00:34.4]} 50. Bg5+ {[%clk 0:00:17.9]} 50... Kf5
{[%clk 0:00:32.4]} 51. g8=Q {[%clk 0:00:17.6]} 51... Qh1+ {[%clk 0:00:30.5]} 52.
Bh6 {[%clk 0:00:18.4]} 52... Qh5 {[%clk 0:00:26.4]} 53. Qc8+ {[%clk 0:00:17.2]}
53... Ke4 {[%clk 0:00:19.4]} 54. Qxc6+ {[%clk 0:00:16.7]} 54... Kd4 {[%clk
0:00:20.3]} 55. Qd6+ {[%clk 0:00:16.2]} 55... Kc4 {[%clk 0:00:21.3]} 56. Kg7
{[%clk 0:00:16]} 56... Qxc5 {[%clk 0:00:21.6]} 57. Qa6+ {[%clk 0:00:13.6]} 57...
Qb5 {[%clk 0:00:22.1]} 58. Qa2+ {[%clk 0:00:13.5]} 58... Qb3 {[%clk 0:00:22.5]}
59. Qf2 {[%clk 0:00:09.7]} 59... Qb7+ {[%clk 0:00:22.1]} 60. Kg6 {[%clk
0:00:09.7]} 60... Qe4+ {[%clk 0:00:22.4]} 61. Kh5 {[%clk 0:00:09.7]} 61... Qd5+
{[%clk 0:00:21]} 62. Bg5 {[%clk 0:00:10.4]} 62... Qd1+ {[%clk 0:00:21.4]} 63.
Kg6 {[%clk 0:00:10.7]} 63... Qd3+ {[%clk 0:00:22]} 64. Kf7 {[%clk 0:00:09.3]}
64... Qd7+ {[%clk 0:00:22.4]} 65. Be7 {[%clk 0:00:09.7]} 65... Qd5+ {[%clk
0:00:23]} 66. Kf8 {[%clk 0:00:10.6]} 66... Qa8+ {[%clk 0:00:23.1]} 67. Kg7
{[%clk 0:00:11]} 67... Qe4 {[%clk 0:00:22.4]} 68. Qb6 {[%clk 0:00:09.4]} 68...
Qg4+ {[%clk 0:00:22.3]} 69. Kf7 {[%clk 0:00:09.9]} 69... Qf5+ {[%clk 0:00:22.6]}
70. Bf6 {[%clk 0:00:10.7]} 70... Qd5+ {[%clk 0:00:23.4]} 71. Ke8 {[%clk
0:00:10]} 71... Qa8+ {[%clk 0:00:22.7]} 72. Bd8 {[%clk 0:00:10.3]} 72... Qe4+
{[%clk 0:00:21.6]} 73. Be7 {[%clk 0:00:10.8]} 73... Qa8+ {[%clk 0:00:20.5]} 74.
Kd7 {[%clk 0:00:11.7]} 74... Qd5+ {[%clk 0:00:20.9]} 75. Bd6 {[%clk 0:00:12.8]}
75... Qf7+ {[%clk 0:00:21]} 76. Kc8 {[%clk 0:00:13.4]} 76... Qe8+ {[%clk
0:00:21.1]} 77. Kb7 {[%clk 0:00:13.3]} 77... Qe4+ {[%clk 0:00:21.8]} 78. Ka7
{[%clk 0:00:12.9]} 78... Qh7+ {[%clk 0:00:21]} 79. Ka6 {[%clk 0:00:12.4]} 79...
Qe4 {[%clk 0:00:20.4]} 80. Qb4+ {[%clk 0:00:11.8]} 80... Kd3 {[%clk 0:00:20.7]}
81. Qb3+ {[%clk 0:00:12.8]} 81... Ke2 {[%clk 0:00:21.4]} 82. Bc5 {[%clk
0:00:13.9]} 82... Qa8+ {[%clk 0:00:21.1]} 83. Kb5 {[%clk 0:00:14.7]} 83... Qb7+
{[%clk 0:00:21.8]} 84. Bb6 {[%clk 0:00:15.6]} 84... Qd7+ {[%clk 0:00:22.1]} 85.
Ka5 {[%clk 0:00:16.5]} 85... Qd2+ {[%clk 0:00:21.8]} 86. Ka4 {[%clk 0:00:17]}
86... Qd3 {[%clk 0:00:21.6]} 87. Qe6+ {[%clk 0:00:17]} 87... Kd1 {[%clk
0:00:21]} 88. Bc5 {[%clk 0:00:16.1]} 88... Qc2+ {[%clk 0:00:21.1]} 89. Ka3
{[%clk 0:00:16.5]} 89... Qxc5+ {[%clk 0:00:20.8]} 90. Kb3 {[%clk 0:00:17.5]}
90... Qb5+ {[%clk 0:00:21.1]} 91. Kc3 {[%clk 0:00:17.2]} 91... Qc5+ {[%clk
0:00:21.8]} 92. Kd3 {[%clk 0:00:17.6]} 92... Qc2+ {[%clk 0:00:22.1]} 93. Kd4
{[%clk 0:00:16.4]} 93... Qd2+ {[%clk 0:00:23.1]} 94. Ke5 {[%clk 0:00:17.5]}
94... Qe2+ {[%clk 0:00:23.4]} 95. Kd6 {[%clk 0:00:18.5]} 95... Qxe6+ {[%clk
0:00:23.8]} 96. Kxe6 {[%clk 0:00:20.4]} 1/2-1/2

[Event "*** Titled Tuesday Blitz"]
[Site "Chess.com"]
[Date "2018.05.01"]
[Round "7"]
[White "Frolik67"]
[Black "Shtembuliak"]
[Result "0-1"]
[WhiteElo "2465"]
[BlackElo "2678"]
[TimeControl "180+2"]
[EndTime "14:31:18 PDT"]
[Termination "Shtembuliak won by resignation"]

1. e4 {[%clk 0:03:01.2]} 1... e6 {[%clk 0:03:00.2]} 2. d3 {[%clk 0:03:01.2]}
2... d5 {[%clk 0:03:00.7]} 3. Nd2 {[%clk 0:03:02.1]} 3... c5 {[%clk 0:03:01.1]}
4. Ngf3 {[%clk 0:03:03.2]} 4... Nc6 {[%clk 0:03:02.1]} 5. g3 {[%clk 0:03:04.1]}
5... Nf6 {[%clk 0:03:03.4]} 6. Bg2 {[%clk 0:03:05.1]} 6... g6 {[%clk 0:03:03.1]}
7. O-O {[%clk 0:03:06.2]} 7... Bg7 {[%clk 0:03:04.6]} 8. exd5 {[%clk 0:03:07]}
8... Nxd5 {[%clk 0:03:05]} 9. Re1 {[%clk 0:03:04.9]} 9... O-O {[%clk 0:03:04.9]}
10. Nc4 {[%clk 0:03:06.1]} 10... Qc7 {[%clk 0:03:01.8]} 11. a4 {[%clk
0:03:03.5]} 11... b6 {[%clk 0:03:02.9]} 12. h4 {[%clk 0:02:58.1]} 12... Ba6
{[%clk 0:02:59.7]} 13. Qe2 {[%clk 0:02:58.8]} 13... Nd4 {[%clk 0:02:55.2]} 14.
Nxd4 {[%clk 0:02:58.1]} 14... cxd4 {[%clk 0:02:57.1]} 15. b3 {[%clk 0:02:57.2]}
15... Nc3 {[%clk 0:02:46.4]} 16. Qg4 {[%clk 0:02:55.4]} 16... Rad8 {[%clk
0:02:45.4]} 17. h5 {[%clk 0:02:55.6]} 17... Rfe8 {[%clk 0:02:38.8]} 18. h6
{[%clk 0:02:55]} 18... Bh8 {[%clk 0:02:38.9]} 19. Qh4 {[%clk 0:02:02.3]} 19...
Qe7 {[%clk 0:02:26.5]} 20. Qf4 {[%clk 0:01:44.2]} 20... e5 {[%clk 0:02:23.1]}
21. Qf3 {[%clk 0:01:42]} 21... Rd7 {[%clk 0:02:15.7]} 22. Ba3 {[%clk 0:01:35.7]}
22... Qd8 {[%clk 0:02:16.4]} 23. Bh3 {[%clk 0:01:33.1]} 23... Bb7 {[%clk
0:02:14.5]} 24. Qg4 {[%clk 0:01:24.4]} 24... f5 {[%clk 0:02:15]} 25. Qh4 {[%clk
0:01:21.7]} 25... Bf6 {[%clk 0:02:16.4]} 26. Nxe5 {[%clk 0:01:14]} 26... Bxh4
{[%clk 0:02:13.2]} 27. Nxd7 {[%clk 0:01:12.9]} 27... Qxd7 {[%clk 0:02:14]} 28.
gxh4 {[%clk 0:01:12.7]} 28... Ne2+ {[%clk 0:02:13.6]} 29. Kf1 {[%clk 0:01:10.8]}
29... Qc6 {[%clk 0:02:13.7]} 0-1

[Event "*** Titled Tuesday Blitz"]
[Site "Chess.com"]
[Date "2018.05.01"]
[Round "7"]
[White "evgenysharapov"]
[Black "AnishGiri"]
[Result "0-1"]
[WhiteElo "2303"]
[BlackElo "2827"]
[TimeControl "180+2"]
[EndTime "14:31:52 PDT"]
[Termination "AnishGiri won by resignation"]

1. e4 {[%clk 0:03:01.9]} 1... e5 {[%clk 0:03:00.9]} 2. Nf3 {[%clk 0:03:02]} 2...
Nc6 {[%clk 0:03:02.4]} 3. Bb5 {[%clk 0:03:02.2]} 3... a6 {[%clk 0:03:03.6]} 4.
Bxc6 {[%clk 0:03:02]} 4... dxc6 {[%clk 0:03:04.2]} 5. d4 {[%clk 0:03:02.8]} 5...
exd4 {[%clk 0:03:05]} 6. Qxd4 {[%clk 0:03:03.2]} 6... Qxd4 {[%clk 0:03:06]} 7.
Nxd4 {[%clk 0:03:03.4]} 7... c5 {[%clk 0:03:06]} 8. Ne2 {[%clk 0:03:03.6]} 8...
Bd7 {[%clk 0:03:05.4]} 9. Bf4 {[%clk 0:03:03.6]} 9... O-O-O {[%clk 0:03:06.2]}
10. Nbc3 {[%clk 0:03:04.2]} 10... Bc6 {[%clk 0:03:06.1]} 11. f3 {[%clk
0:03:04.5]} 11... Ne7 {[%clk 0:03:07.5]} 12. Rd1 {[%clk 0:03:02.5]} 12... Rxd1+
{[%clk 0:03:07.3]} 13. Kxd1 {[%clk 0:03:03]} 13... Ng6 {[%clk 0:03:09.2]} 14.
Bg3 {[%clk 0:03:03.1]} 14... Be7 {[%clk 0:03:10]} 15. Ke1 {[%clk 0:02:52.3]}
15... Rd8 {[%clk 0:03:08.7]} 16. Nf4 {[%clk 0:02:52.4]} 16... Bf6 {[%clk
0:02:53.3]} 17. Nxg6 {[%clk 0:02:51.8]} 17... hxg6 {[%clk 0:02:53.7]} 18. Ke2
{[%clk 0:02:51.2]} 18... Bd4 {[%clk 0:02:32.9]} 19. Rb1 {[%clk 0:02:27.9]} 19...
f5 {[%clk 0:02:31]} 20. exf5 {[%clk 0:02:17]} 20... gxf5 {[%clk 0:02:31.1]} 21.
Bf2 {[%clk 0:02:04.9]} 21... g5 {[%clk 0:02:17.1]} 22. Bxd4 {[%clk 0:02:02]}
22... cxd4 {[%clk 0:02:19]} 23. Nd1 {[%clk 0:02:02.2]} 23... Bb5+ {[%clk
0:02:17.8]} 24. Kd2 {[%clk 0:01:56.9]} 24... Re8 {[%clk 0:02:19]} 25. a4 {[%clk
0:01:19.7]} 25... Re2+ {[%clk 0:02:18]} 26. Kc1 {[%clk 0:01:20.2]} 26... d3
{[%clk 0:02:03]} 27. cxd3 {[%clk 0:01:11.4]} 27... Bxd3 {[%clk 0:02:00.3]} 28.
Ra1 {[%clk 0:01:09.7]} 28... Rc2+ {[%clk 0:01:55.1]} 29. Kb1 {[%clk 0:01:10]}
29... Rc4+ {[%clk 0:01:56.6]} 30. Ka2 {[%clk 0:01:03.2]} 30... Rxa4+ {[%clk
0:01:58.5]} 0-1

[Event "*** Titled Tuesday Blitz"]
[Site "Chess.com"]
[Date "2018.05.01"]
[Round "7"]
[White "Last7Samurai"]
[Black "LastHeroJr"]
[Result "1/2-1/2"]
[WhiteElo "2643"]
[BlackElo "2466"]
[TimeControl "180+2"]
[EndTime "14:32:12 PDT"]
[Termination "Game drawn by agreement"]

1. Nf3 {[%clk 0:02:59.2]} 1... Nf6 {[%clk 0:03:00.4]} 2. g3 {[%clk 0:03:00]}
2... g6 {[%clk 0:03:00.8]} 3. b3 {[%clk 0:03:00.8]} 3... Bg7 {[%clk 0:03:01.7]}
4. Bb2 {[%clk 0:03:01.2]} 4... O-O {[%clk 0:03:03.2]} 5. Bg2 {[%clk 0:03:01.9]}
5... d6 {[%clk 0:03:04.2]} 6. d4 {[%clk 0:03:02.6]} 6... c5 {[%clk 0:03:05]} 7.
O-O {[%clk 0:02:56.2]} 7... cxd4 {[%clk 0:03:05.7]} 8. Nxd4 {[%clk 0:02:56.9]}
8... d5 {[%clk 0:03:07.2]} 9. c4 {[%clk 0:02:57.2]} 9... dxc4 {[%clk 0:03:08]}
10. bxc4 {[%clk 0:02:59.1]} 10... Qb6 {[%clk 0:03:09]} 11. Qb3 {[%clk
0:02:59.2]} 11... Nfd7 {[%clk 0:02:11]} 12. e3 {[%clk 0:02:53.7]} 12... Nc5
{[%clk 0:02:08.5]} 13. Qa3 {[%clk 0:02:44.3]} 13... Nc6 {[%clk 0:01:57.5]} 14.
Nc3 {[%clk 0:02:31.3]} 14... Nd3 {[%clk 0:01:44]} 15. Nd5 {[%clk 0:02:12.4]}
15... Qxb2 {[%clk 0:01:42.4]} 16. Qxd3 {[%clk 0:02:12.5]} 16... Nxd4 {[%clk
0:01:26.6]} 17. Nxe7+ {[%clk 0:02:12.6]} 17... Kh8 {[%clk 0:01:27.7]} 18. exd4
{[%clk 0:02:13.7]} 18... Qxd4 {[%clk 0:01:22.3]} 19. Qxd4 {[%clk 0:02:13.6]}
19... Bxd4 {[%clk 0:01:24.2]} 20. Rad1 {[%clk 0:02:14.6]} 20... Bb6 {[%clk
0:01:14.2]} 21. Rfe1 {[%clk 0:01:37.1]} 21... Rb8 {[%clk 0:01:05.2]} 22. Nxc8
{[%clk 0:01:30]} 22... Rbxc8 {[%clk 0:01:07.1]} 23. Bd5 {[%clk 0:01:16.8]}
1/2-1/2

[Event "*** Titled Tuesday Blitz"]
[Site "Chess.com"]
[Date "2018.05.01"]
[Round "7"]
[White "RodinMihail"]
[Black "dukicz123"]
[Result "1-0"]
[WhiteElo "2419"]
[BlackElo "2313"]
[TimeControl "180+2"]
[EndTime "14:32:30 PDT"]
[Termination "RodinMihail won by resignation"]

1. e4 {[%clk 0:03:01.9]} 1... e5 {[%clk 0:03:00.6]} 2. Nf3 {[%clk 0:03:02.7]}
2... Nc6 {[%clk 0:03:01.9]} 3. Nc3 {[%clk 0:03:03.5]} 3... Nf6 {[%clk
0:03:02.6]} 4. d4 {[%clk 0:03:04.4]} 4... exd4 {[%clk 0:03:03.2]} 5. Nxd4 {[%clk
0:03:06.3]} 5... Bb4 {[%clk 0:03:04.4]} 6. Nxc6 {[%clk 0:03:07.3]} 6... bxc6
{[%clk 0:03:05.1]} 7. Bd3 {[%clk 0:03:08.7]} 7... d5 {[%clk 0:03:06.6]} 8. exd5
{[%clk 0:03:10.6]} 8... cxd5 {[%clk 0:03:08.5]} 9. Qe2+ {[%clk 0:03:11.5]} 9...
Be6 {[%clk 0:03:02.5]} 10. Bb5+ {[%clk 0:03:12]} 10... Nd7 {[%clk 0:02:56.1]}
11. Bc6 {[%clk 0:03:12.4]} 11... O-O {[%clk 0:02:36.1]} 12. Bxa8 {[%clk
0:03:11.4]} 12... Qxa8 {[%clk 0:02:38]} 13. O-O {[%clk 0:03:12]} 13... Re8
{[%clk 0:02:31.3]} 14. Bf4 {[%clk 0:02:59.4]} 14... c6 {[%clk 0:02:23.9]} 15.
Qf3 {[%clk 0:02:57.2]} 15... Bf5 {[%clk 0:02:15.6]} 16. Bd6 {[%clk 0:02:37]}
16... Bxd6 {[%clk 0:01:55.4]} 17. Qxf5 {[%clk 0:02:37.5]} 17... Nf8 {[%clk
0:01:42.3]} 18. Rfe1 {[%clk 0:02:37.5]} 18... Ne6 {[%clk 0:01:43.4]} 19. Rad1
{[%clk 0:02:27.7]} 19... Qb8 {[%clk 0:01:43.8]} 20. g3 {[%clk 0:02:10.8]} 20...
Qxb2 {[%clk 0:01:44.1]} 21. Rd3 {[%clk 0:02:11.7]} 21... Qxc2 {[%clk 0:01:29.2]}
22. Re2 {[%clk 0:01:57.1]} 22... Qc1+ {[%clk 0:01:22.1]} 23. Kg2 {[%clk
0:01:57.8]} 23... Rf8 {[%clk 0:01:16]} 24. Rxe6 {[%clk 0:01:48.5]} 24... fxe6
{[%clk 0:01:14.2]} 25. Qxe6+ {[%clk 0:01:50.4]} 25... Kh8 {[%clk 0:01:15.6]} 26.
Qxd6 {[%clk 0:01:50.6]} 26... Kg8 {[%clk 0:01:05.9]} 27. Qe6+ {[%clk 0:01:46.5]}
27... Kh8 {[%clk 0:01:06.4]} 28. Rf3 {[%clk 0:01:46.7]} 28... Rg8 {[%clk
0:01:05.8]} 29. h4 {[%clk 0:01:34.4]} 29... d4 {[%clk 0:01:06.5]} 30. Ne4 {[%clk
0:01:32.1]} 30... c5 {[%clk 0:01:05.5]} 31. Ng5 {[%clk 0:01:31.4]} 31... h6
{[%clk 0:01:04.3]} 32. Qg6 {[%clk 0:01:29.3]} 1-0

[Event "*** Titled Tuesday Blitz"]
[Site "Chess.com"]
[Date "2018.05.01"]
[Round "7"]
[White "DanielNaroditsky"]
[Black "eljanov"]
[Result "1-0"]
[WhiteElo "2811"]
[BlackElo "2658"]
[TimeControl "180+2"]
[EndTime "14:32:35 PDT"]
[Termination "DanielNaroditsky won by resignation"]

1. e4 {[%clk 0:03:01.9]} 1... c6 {[%clk 0:03:00]} 2. Nc3 {[%clk 0:03:01.4]} 2...
d5 {[%clk 0:03:00.8]} 3. Nf3 {[%clk 0:02:59.4]} 3... Nf6 {[%clk 0:03:01.7]} 4.
e5 {[%clk 0:02:57.2]} 4... Ne4 {[%clk 0:03:02.2]} 5. Bd3 {[%clk 0:02:55.4]} 5...
Nc5 {[%clk 0:03:00.3]} 6. Bf1 {[%clk 0:02:47.3]} 6... d4 {[%clk 0:02:50.3]} 7.
Ne2 {[%clk 0:02:48.6]} 7... d3 {[%clk 0:02:47.2]} 8. Nf4 {[%clk 0:02:50]} 8...
Bf5 {[%clk 0:02:43]} 9. cxd3 {[%clk 0:02:47.5]} 9... Nxd3+ {[%clk 0:02:43.4]}
10. Bxd3 {[%clk 0:02:45.2]} 10... Bxd3 {[%clk 0:02:44.3]} 11. Qb3 {[%clk
0:02:40.3]} 11... Be4 {[%clk 0:01:50.7]} 12. e6 {[%clk 0:02:35.2]} 12... f6
{[%clk 0:01:29.5]} 13. Qxb7 {[%clk 0:02:32.1]} 13... g5 {[%clk 0:01:30.1]} 14.
Ne2 {[%clk 0:01:48.9]} 14... Bg7 {[%clk 0:01:25.2]} 15. Qxa8 {[%clk 0:01:48.8]}
15... Qc7 {[%clk 0:01:18.2]} 16. d3 {[%clk 0:01:41.1]} 16... Bxf3 {[%clk
0:01:02.5]} 17. gxf3 {[%clk 0:01:42.5]} 17... O-O {[%clk 0:00:47.7]} 18. Be3
{[%clk 0:01:43.4]} 18... f5 {[%clk 0:00:31]} 19. Qxa7 {[%clk 0:01:40.5]} 19...
Qd6 {[%clk 0:00:31.2]} 20. Bd4 {[%clk 0:01:16.6]} 20... c5 {[%clk 0:00:21.1]}
21. Qxc5 {[%clk 0:01:13.1]} 1-0

[Event "*** Titled Tuesday Blitz"]
[Site "Chess.com"]
[Date "2018.05.01"]
[Round "7"]
[White "EmreDedebas"]
[Black "DenksportAcademie"]
[Result "0-1"]
[WhiteElo "2373"]
[BlackElo "2245"]
[TimeControl "180+2"]
[EndTime "14:33:28 PDT"]
[Termination "DenksportAcademie won by resignation"]

1. c4 {[%clk 0:03:01.4]} 1... d6 {[%clk 0:02:56.6]} 2. Nc3 {[%clk 0:03:01.6]}
2... e5 {[%clk 0:02:57.5]} 3. Nf3 {[%clk 0:03:01.2]} 3... f5 {[%clk 0:02:58.3]}
4. d4 {[%clk 0:03:01.8]} 4... e4 {[%clk 0:02:57]} 5. Ng5 {[%clk 0:03:03.1]} 5...
Be7 {[%clk 0:02:57.9]} 6. h4 {[%clk 0:03:02]} 6... h6 {[%clk 0:02:44.9]} 7. Nh3
{[%clk 0:03:02]} 7... Bxh4 {[%clk 0:02:44.8]} 8. e3 {[%clk 0:02:59]} 8... Bf6
{[%clk 0:02:43.5]} 9. Qh5+ {[%clk 0:02:58.1]} 9... Kf8 {[%clk 0:02:42.7]} 10.
Nf4 {[%clk 0:02:58.6]} 10... Ne7 {[%clk 0:02:42.3]} 11. Ncd5 {[%clk 0:02:59.3]}
11... Nbc6 {[%clk 0:02:04.4]} 12. Nxf6 {[%clk 0:02:55.7]} 12... gxf6 {[%clk
0:02:05]} 13. Ng6+ {[%clk 0:02:57.2]} 13... Nxg6 {[%clk 0:02:05]} 14. Qxg6
{[%clk 0:02:59.1]} 14... Qe7 {[%clk 0:02:00.5]} 15. Rxh6 {[%clk 0:02:58.7]}
15... Rxh6 {[%clk 0:01:57]} 16. Qxh6+ {[%clk 0:02:58.1]} 16... Qg7 {[%clk
0:01:58.6]} 17. Qh4 {[%clk 0:02:47.4]} 17... Nb4 {[%clk 0:01:57.5]} 18. Kd2
{[%clk 0:02:43.2]} 18... Be6 {[%clk 0:01:52.7]} 19. a3 {[%clk 0:02:43.8]} 19...
Na6 {[%clk 0:01:40.5]} 20. Kc3 {[%clk 0:02:42.6]} 20... Re8 {[%clk 0:01:39.8]}
21. b4 {[%clk 0:02:42]} 21... c5 {[%clk 0:01:39.8]} 22. Bb2 {[%clk 0:02:37.7]}
22... cxd4+ {[%clk 0:01:37.4]} 23. exd4 {[%clk 0:02:38.1]} 23... Rc8 {[%clk
0:01:35.3]} 24. d5 {[%clk 0:02:37]} 24... Bxd5 {[%clk 0:01:32.8]} 25. Kb3 {[%clk
0:02:37.1]} 25... Bg8 {[%clk 0:01:20]} 26. Bxf6 {[%clk 0:02:35.5]} 26... Qg6
{[%clk 0:01:11.3]} 27. Be2 {[%clk 0:02:28.8]} 27... b5 {[%clk 0:01:06.8]} 28.
Bh5 {[%clk 0:02:21]} 28... Bxc4+ {[%clk 0:01:06.8]} 29. Kb2 {[%clk 0:02:22]}
29... Qh6 {[%clk 0:00:51.9]} 30. Be7+ {[%clk 0:02:06.4]} 30... Kg7 {[%clk
0:00:52]} 31. Rh1 {[%clk 0:02:06.5]} 31... Qd2+ {[%clk 0:00:46.8]} 32. Kb1
{[%clk 0:01:46.3]} 32... Bd3+ {[%clk 0:00:47]} 33. Ka1 {[%clk 0:01:46.1]} 33...
Qc3+ {[%clk 0:00:46.3]} 34. Ka2 {[%clk 0:01:43.8]} 34... Bc4+ {[%clk 0:00:35.5]}
35. Kb1 {[%clk 0:01:42]} 35... Qb3+ {[%clk 0:00:36]} 36. Kc1 {[%clk 0:01:41.4]}
36... Be2+ {[%clk 0:00:21.5]} 37. Kd2 {[%clk 0:01:40.6]} 37... Rc2+ {[%clk
0:00:22]} 0-1

[Event "*** Titled Tuesday Blitz"]
[Site "Chess.com"]
[Date "2018.05.01"]
[Round "7"]
[White "Kouzari"]
[Black "FearNoEvil12"]
[Result "1-0"]
[WhiteElo "2625"]
[BlackElo "1972"]
[TimeControl "180+2"]
[EndTime "14:33:35 PDT"]
[Termination "Kouzari won by resignation"]

1. e4 {[%clk 0:03:01.9]} 1... a6 {[%clk 0:02:59.8]} 2. d4 {[%clk 0:02:58.9]}
2... b5 {[%clk 0:03:01]} 3. Bd3 {[%clk 0:02:58.3]} 3... Bb7 {[%clk 0:03:02.2]}
4. Qe2 {[%clk 0:02:58.9]} 4... e6 {[%clk 0:03:03.6]} 5. Nf3 {[%clk 0:02:58.5]}
5... Nf6 {[%clk 0:03:05.1]} 6. O-O {[%clk 0:02:59.4]} 6... d6 {[%clk 0:03:05.5]}
7. Bg5 {[%clk 0:03:00.8]} 7... h6 {[%clk 0:03:05.9]} 8. Bh4 {[%clk 0:03:01.2]}
8... g5 {[%clk 0:03:06.8]} 9. Bg3 {[%clk 0:03:02.4]} 9... Nbd7 {[%clk 0:03:08]}
10. Nbd2 {[%clk 0:03:03.4]} 10... Rg8 {[%clk 0:03:08.3]} 11. a4 {[%clk
0:03:04.3]} 11... b4 {[%clk 0:03:08]} 12. a5 {[%clk 0:03:04.7]} 12... h5 {[%clk
0:03:07.9]} 13. h4 {[%clk 0:03:04.3]} 13... gxh4 {[%clk 0:03:07.5]} 14. Bxh4
{[%clk 0:03:05.2]} 14... Be7 {[%clk 0:03:09]} 15. c4 {[%clk 0:02:50.7]} 15...
Ng4 {[%clk 0:03:06.1]} 16. Bxe7 {[%clk 0:02:47.2]} 16... Qxe7 {[%clk 0:03:08]}
17. d5 {[%clk 0:02:47.1]} 17... Nde5 {[%clk 0:02:58.5]} 18. Nxe5 {[%clk
0:02:47.5]} 18... Nxe5 {[%clk 0:02:58.5]} 19. f4 {[%clk 0:02:48.6]} 19... Ng4
{[%clk 0:02:54.4]} 20. Nf3 {[%clk 0:02:44.3]} 20... h4 {[%clk 0:02:52.2]} 21.
Kh1 {[%clk 0:02:41.4]} 21... Bc8 {[%clk 0:02:46.1]} 22. Qd2 {[%clk 0:02:38.6]}
22... Qf6 {[%clk 0:02:35.6]} 23. Rae1 {[%clk 0:02:36.1]} 23... Qh6 {[%clk
0:02:23.7]} 24. e5 {[%clk 0:02:32.3]} 24... exd5 {[%clk 0:02:19.5]} 25. exd6+
{[%clk 0:02:30.8]} 25... Kf8 {[%clk 0:02:19.4]} 26. dxc7 {[%clk 0:02:28.7]}
26... h3 {[%clk 0:02:15.8]} 27. g3 {[%clk 0:02:25]} 27... h2 {[%clk 0:02:15.8]}
28. Qxb4+ {[%clk 0:02:16.3]} 28... Kg7 {[%clk 0:02:12]} 29. Qc3+ {[%clk
0:02:17.2]} 29... Kf8 {[%clk 0:02:08]} 30. Ng5 {[%clk 0:02:17.4]} 30... Nf6
{[%clk 0:02:01.6]} 31. Qxf6 {[%clk 0:01:37]} 31... Qxf6 {[%clk 0:02:01.2]} 32.
Nh7+ {[%clk 0:01:38.1]} 32... Kg7 {[%clk 0:02:03.1]} 33. Nxf6 {[%clk 0:01:39.1]}
33... Kxf6 {[%clk 0:02:05]} 34. cxd5 {[%clk 0:01:38.7]} 34... Bb7 {[%clk
0:01:57.9]} 35. Kxh2 {[%clk 0:01:30.1]} 35... Rac8 {[%clk 0:01:53.8]} 36. d6
{[%clk 0:01:29.1]} 36... Rh8+ {[%clk 0:01:53.7]} 37. Kg1 {[%clk 0:01:30.1]}
37... Rh1+ {[%clk 0:01:54.3]} 38. Kf2 {[%clk 0:01:31.1]} 38... Rh2+ {[%clk
0:01:54.9]} 39. Ke3 {[%clk 0:01:32.2]} 39... Ke6 {[%clk 0:01:50.4]} 40. Rd1
{[%clk 0:01:25.6]} 40... Kxd6 {[%clk 0:01:47.6]} 41. Bf5+ {[%clk 0:01:26.3]}
41... Kxc7 {[%clk 0:01:47.2]} 42. Bxc8 {[%clk 0:01:24.5]} 42... Kxc8 {[%clk
0:01:23.4]} 43. Rf2 {[%clk 0:01:22.5]} 43... Rh6 {[%clk 0:01:21.2]} 44. Rd4
{[%clk 0:01:16.8]} 44... Re6+ {[%clk 0:01:19.3]} 45. Kd2 {[%clk 0:01:17.6]}
45... Rc6 {[%clk 0:01:15.9]} 46. b4 {[%clk 0:01:18]} 1-0